Workbook

Sheet Version
A1: This Pricing Schedule is based on the COTO Draft Standard (DS) October 2020, and updated for the Works Pro-Forma Book 3 - 2024.1 – July 2024 version saved in EDMS folder 7475454

Sheet Conv. Construction BoQ
A2: SCHEDULES | B2: ITEM NO | C2: DESCRIPTION | D2: UNIT | E2: QUANTITY | F2: RATE | G2: AMOUNT | J2: Sort
H3: Note to compiler: Items requiring additional information to be provided by compiler is marked in this column by X. | J3: =IF(G3>0,1," ") -> 
B4: C1.2 | C4: GENERAL REQUIREMENTS AND PROVISIONS | H4: Note to compiler: The quantity for all month items (other than item C1.3.1.3(a) to exclude the Mobilisation Period. | J4: 1
B5: C1.2.1 | C5: Environmental Management | E5: 0 | J5: 1
B6: C1.2.1.1 | C6: Monitoring of compliance with and reporting on the EMP | D6: month | E6: 9 | G6: =E6*F6 -> 0 | J6: =IF(G6>0,1," ") -> 
B7: C1.2.1.2 | C7: Dedicated environmental officer (if specified in the Contract Documentation) | D7: month | E7: 9 | G7: =E7*F7 -> 0 | H7: X | J7: =IF(G7>0,1," ") -> 
B8: C1.2.2 | C8: Programming and Reporting | E8: 0 | J8: 1
B9: C1.2.2.1 | C9: Submission of a Scheme 1 Programme | D9: lump sum
B10: C1.2.2.2 | C10: Reviewing and updating a Scheme 1 Programme | D10: month | G10: =E10*F10 -> 0
B11: C1.2.2.3 | C11: Submission of a Scheme 2 Initial Programme | D11: lump sum | E11: 1 | G11: =E11*F11 -> 0
B12: C1.2.2.4 | C12: Submission of a Scheme 2 Full Programme | D12: lump sum | E12: 1 | G12: 0
B13: C1.2.2.5 | C13: Reviewing and updating a Scheme 2 programme every month | D13: month | E13: 9 | G13: =E13*F13 -> 0
B14: C1.2.2.6 | C14: Preparation and submission of all information and reports specified in the Contract Documentation | D14: month | E14: 9 | G14: =E14*F14 -> 0
B15: C1.2.3 | C15: Routine road maintenance of existing public roads within the Site of the Works or other public roads outside the Site of the Works which are used as detours | E15: 0 | J15: 1
B16: C1.2.3.1 | C16: Grass cutting | D16: hectare (ha) | E16: 65 | G16: =E16*F16 -> 0
B17: C1.2.3.2 | C17: Drain cleaning | D17: kilometre (km) | E17: 20 | G17: 0
B18: C1.2.3.3 | C18: Cleaning out culverts | D18: cubic metre (m3) | E18: 360 | G18: 0
B19: C1.2.3.4 | C19: Collection of rubbish / litter | D19: kilometre (km) | E19: 21 | G19: 0
B20: C1.2.3.5 | C20: Base patching using crushed stone material stabilised with bitumen emulsion and cement | D20: cubic metre (m3) | G20: 0
B21: C1.2.3.6 | C21: Base and/or surface patching using cold premixed asphalt | D21: kilogram (kg) | G21: 0
B22: C1.2.3.7 | C22: Base and/or surface patching using hot plant mixed asphalt | D22: ton (t) | G22: 0
B23: C1.2.3.8 | C23: Replacement of damaged guardrails including posts | D23: metre (m) | G23: 0
B24: C1.2.3.9 | C24: Grading of temporary gravel deviations and existing roads used as detours | D24: kilometre (km) | G24: 0
B25: C1.2.3.10 | C25: Watering of temporary gravel deviations and existing roads used as detours | D25: kilolitre (kℓ) | G25: 0
B26: C1.2.3.11 | C26: Other road maintenance work ordered by the Engineer | D26: provisional sum | E26: 1 | F26: R100,000.00 | G26: =E26*F26 -> R100,000.00 | J26: 1
B27: C1.2.3.12 | C27: Handling cost, profit and all other charges in respect of item C1.2.3.11 | D27: percentage (%) | E27: 100 000 | G27: =E27*F27 -> 0
B28: C1.2.3.13 | C28: Liaison with the routine road maintenance contractor | D28: month | E28: 12 | G28: =E28*F28 -> 0
B29: C1.2.4 | C29: Stakeholder liaison | D29: month | E29: 12 | G29: =E29*F29 -> 0
B30: C1.2.5 | C30: Safety | E30: 0 | J30: 1
B31: C1.2.5.1 | C31: Health and safety plan | D31: lump sum | E31: 1 | G31: =E31*F31 -> 0
B32: C1.2.5.2 | C32: Implementation of health and safety plan | D32: month | E32: 9 | G32: =E32*F32 -> 0
B33: C1.2.6 | C33: Work adjacent to properties
B34: C1.2.6.1 | C34: Survey of adjacent properties | D34: number (No.) | G34: =E34*F34 -> 0
B35: C1.2.6.2 | C35: Preventive and/or mitigation measures | D35: provisional sum
B36: C1.2.6.3 | C36: Handling cost, profit and all other charges in respect of item C1.2.6.2 | D36: percentage (%) | G36: =E36*F36 -> 0
B37: PC1.2.7 | C37: Road safety audits | E37: 0 | F37: 0 | J37: 1
B38: C1.2.7.1 | C38: Stage 4 work zone traffic management audit | D38: provisional sum | E38: 1 | F38: R100,000.00 | G38: =E38*F38 -> R100,000.00 | J38: 1
B39: C1.2.7.2 | C39: Handling cost, profit and all other charges in respect of item C1.2.7.1 | D39: percentage (%) | E39: 100 000 | G39: =E39*F39 -> 0
B40: C1.2.7.3 | C40: Stage 5 pre-opening stage traffic safety audit | D40: provisional sum | E40: 1 | F40: R100,000.00 | G40: =E40*F40 -> R100,000.00 | J40: 1
B41: C1.2.7.4 | C41: Handling cost, profit and all other charges in respect of item C1.2.7.3 | D41: percentage (%) | E41: 100 000 | G41: =E41*F41 -> 0
B42: C1.2.8 | C42: Dayworks | E42: 0 | J42: 1
B43: C1.2.8.1 | C43: Personnel | E43: 0 | J43: 1
B44: C1.2.8.1(a) | C44: Unskilled labourer | D44: hour (h) | E44: 250 | G44: =E44*F44 -> 0
B45: C1.2.8.1(b) | C45: Semi-skilled labourer | D45: hour (h) | E45: 150 | G45: 0
B46: C1.2.8.1(c) | C46: Skilled labourer | D46: hour (h) | E46: 50 | G46: 0
B47: C1.2.8.1(d) | C47: Gang leader | D47: hour (h) | E47: 50 | G47: 0
B48: C1.2.8.1(e) | C48: Foreman | D48: hour (h) | E48: 50 | G48: 0
B49: C1.2.8.1(f) | C49: Skilled artisan | D49: hour (h) | E49: 50 | G49: 0
B50: C1.2.8.2 | C50: Construction equipment | E50: 0 | H50: X | I50: Specified | J50: 1
B51: C1.2.8.2(a) | C51: Motor grader (140 S) | D51: hour (h) | E51: 10 | G51: =E51*F51 -> 0 | H51: X | I51: Specified
B52: C1.2.8.2(b) | C52: Vibratory roller (minimum 17 ton) | D52: hour (h) | E52: 50 | G52: 0 | H52: X | I52: Specified
B53: C1.2.8.2(c) | C53: Pneumatic roller (27 ton) | D53: hour (h) | E53: 50 | G53: 0 | H53: X | I53: Specified
B54: C1.2.8.2(d) | C54: Front end loader (Minimum 82 kW) | D54: hour (h) | E54: 50 | G54: 0 | H54: X | I54: Specified
B55: C1.2.8.2(e) | C55: Tractor loader backhoe (crawler, minimum 92 kW) | D55: hour (h) | E55: 250 | G55: 0 | H55: X | I55: Specified
B56: C1.2.8.2(f) | C56: Excavator (portable diesel with 3 jackhammers and 90m hose) | D56: hour (h) | E56: 50 | G56: 0 | H56: X | I56: Specified
B57: C1.2.8.2(g) | C57: Compressor | D57: hour (h) | E57: 50 | G57: 0 | H57: X | I57: Specified
B58: C1.2.8.2(h) | C58: Milling machine (cutting width of 1,2m or smaller) | D58: hour (h) | E58: 50 | G58: 0 | H58: X | I58: Specified
B59: C1.2.8.2(i) | C59: Water tanker (16 000 l) | D59: hour (h) | E59: 50 | G59: =E59*F59 -> 0
B60: C1.2.8.2(j) | C60: Mechanical broom (self propelled) | D60: hour (h) | E60: 50 | G60: 0
B61: C1.2.8.2(k) | C61: Compactor (plate) | D61: hour (h) | E61: 50 | G61: 0
B62: C1.2.8.3 | C62: Vehicles | H62: X | I62: Specified | J62: 1
B63: C1.2.8.3(a) | C63: Light delivery vehicle (7 ton with hydraulic crane) | D63: kilometre (km) | E63: 500 | G63: =E63*F63 -> 0 | H63: X | I63: Specified
B64: C1.2.8.3(b) | C64: Flatbed truck (10 m3) | D64: kilometre (km) | E64: 500 | G64: =E64*F64 -> 0 | H64: X | I64: Specified
B65: C1.2.8.3(c) | C65: Dump truck (10 m3) | D65: kilometre (km) | E65: 1 500 | G65: =E65*F65 -> 0 | H65: X | I65: Specified
B66: C1.2.8.3(d) | C66: Delivery truck/bus suitable for transporting labourers (16 seater)) | D66: kilometre (km) | E66: 3 000 | G66: =E66*F66 -> 0 | H66: X | I66: Specified
B67: C1.2.8.4 | C67: Materials | E67: 0 | J67: 1
B68: C1.2.8.4(a) | C68: Procurement of materials | D68: provisional sum | E68: 1 | F68: R250,000.00 | G68: =E68*F68 -> R250,000.00 | J68: =IF(G68>0,1," ") -> 1
B69: C1.2.8.4(b) | C69: Contractor's handling costs, profit and all other charges in respect of item C1.2.8.4(a) | D69: percentage (%) | E69: 250 000 | G69: =E69*F69 -> 0
B70: C1.2.9 | C70: Disposal of non-useable assets | E70: 0 | F70: 0 | J70: 1
B71: C1.2.9.1 | C71: Disposal of non-useable assets identified in the Contract Documentation at time of tender (list items and quantity) | D71: rate (per asset) | H71: X
B72: C1.2.9.2 | C72: Disposal of non-useable assets not identified at time of tender | D72: provisional sum | E72: 1 | F72: R90,000.00 | G72: =E72*F72 -> R90,000.00 | J72: 1
B73: C1.2.9.3 | C73: Handling cost, profit and all other charges in respect of item C1.2.9.2 | D73: percentage (%) | E73: 90 000 | G73: =E73*F73 -> 0
B74: PC1.2.10 | C74: Dispute Adjudication Board (DAB) | E74: 0 | J74: 1
B75: C1.2.10.1 | C75: Employer’s contribution to DAB (50%) | D75: prime cost (PC) sum | E75: 1 | F75: R400,000.00 | G75: =E75*F75 -> R400,000.00 | H75: Note to compiler: Allow 50% of the estimated cost of the DAB | J75: 1
E76: 0 | H76: Add items from other Sections as specified in C1.1.3.7 and identified in Part C3(iii) where applicable
E77: 0
E78: 0
B79: C1.2 | C79: TOTAL CARRIED FORWARD TO SUMMARY | G79: =SUM(G6:G78) -> R1,040,000.00 | J79: 1
J80: 1
B81: C1.3 | C81: CONTRACTOR’S SITE ESTABLISHMENT AND GENERAL OBLIGATIONS | E81: 0 | H81: Note to compiler: Items requiring additional information to be provided by compiler is marked in this column by X. | J81: 1
B82: PC1.3.1 | C82: The Contractor's general obligations | E82: 0 | J82: 1
B83: C1.3.1.1 | C83: Fixed obligations | D83: lump sum | E83: 1 | G83: =E83*F83 -> 0
B84: C1.3.1.2 | C84: Value-related obligations | D84: lump sum | E84: 1 | G84: 0
B85: PC1.3.1.3 | C85: Time-related obligations | J85: 1
B86: PC1.3.1.3(a) | C86: Mobilisation period | D86: month | E86: 3 | G86: =E86*F86 -> 0
B87: PC1.3.1.3(b) | C87: Execution of the works | D87: month | E87: 9 | G87: 0
B88: PC1.3.1.4 | C88: Suspension Cost | E88: 0 | J88: 1
B89: PC1.3.1.4(a) | C89: De-establishment | D89: number | E89: 1 | G89: =E89*F89 -> 0
B90: PC1.3.1.4(b) | C90: Re-establishment | D90: number | E90: 1 | G90: 0
B91: PC1.3.1.4(c) | C91: Suspension period | D91: month | E91: 2 | G91: =E91*F91 -> 0
B92: PC1.3.1.4(d) | C92: Engineer's cost | D92: prime cost (PC) sum | E92: 1 | F92: R495,000.00 | G92: =E92*F92 -> R495,000.00 | J92: 1
B93: PC1.3.1.4(e) | C93: Handling cost, profit and all other charges in respect of item C1.3.1.4(d) | D93: percentage (%) | E93: =F92 -> 495 000 | G93: =E93*F93 -> 0
B94: C1.3.2 | C94: Contract sign boards | D94: square metre (m2) | E94: 35 | G94: =E94*F94 -> 0
E95: 0 | H95: Add items from other Sections as specified in C1.1.3.7 and identified in Part C3(iii) where applicable
E96: 0
E97: 0
B98: C1.3 | C98: TOTAL CARRIED FORWARD TO SUMMARY | G98: =SUM(G83:G97) -> R495,000.00 | J98: 1
J99: 1
B100: C1.4 | C100: FACILITIES FOR THE ENGINEER | H100: Note to compiler: Items requiring additional information to be provided by compiler is marked in this column by X. | J100: 1
B101: C1.4.1 | C101: Site accommodation | J101: 1
B102: C1.4.1.1 | C102: Offices and conference room | D102: square metre (m2) | E102: 75 | G102: =E102*F102 -> 0
B103: C1.4.1.2 | C103: Laboratories | D103: square metre (m2) | E103: 220 | G103: 0
B104: C1.4.1.3 | C104: Open concrete working floors and verandas | D104: square metre (m2) | E104: 75 | G104: 0
B105: C1.4.1.4 | C105: Roofs over open concrete working floors and verandas | D105: square metre (m2) | E105: 35 | G105: 0
B106: C1.4.1.5 | C106: Store rooms inside the laboratory | D106: square metre (m2) | E106: 20 | G106: 0
B107: C1.4.1.6 | C107: Car ports | D107: number (No.) | E107: 5 | G107: 0
B108: C1.4.1.7 | C108: Ablution unit (equipped as specified) | D108: number (No.) | E108: 2 | G108: 0 | H108: X | I108: Specified in COTO
B109: C1.4.1.8 | C109: Change room with a shower | D109: number (No.)
B110: C1.4.1.9 | C110: Kitchen unit (equipped as specified) | D110: number (No.) | E110: 1 | G110: 0 | H110: X | I110: Specified in COTO
B111: C1.4.1.10 | C111: Type A prefabricated house (equipped as specified) | D111: number (No.) | H111: X
B112: C1.4.1.11 | C112: Type B prefabricated house (equipped as specified) | D112: number (No.) | H112: X
B113: C1.4.1.12 | C113: Type C prefabricated house (equipped as specified) | D113: number (No.) | H113: X
B114: C1.4.1.13 | C114: Rented housing paid for by the Contractor | D114: provisional sum
B115: C1.4.1.14 | C115: Contractor's handling costs, profit and all other charges in respect of item C1.4.1.13 | D115: percentage (%)
B116: C1.4.2 | C116: Items measured by area | E116: 0 | J116: 1
B117: C1.4.2.1 | C117: Shelving as specified, complete with brackets | D117: square metre (m2) | E117: 20 | G117: =E117*F117 -> 0
B118: C1.4.2.2 | C118: Work benches with a concrete slab top | D118: square metre (m2) | E118: 20 | G118: 0
B119: C1.4.2.3 | C119: Work-benches with a wooden top | D119: square metre (m2) | E119: 10 | G119: 0
B120: C1.4.2.4 | C120: Constant-temperature baths of concrete and/or plastered brick | D120: square metre (m2) | E120: 5 | G120: 0
B121: C1.4.2.5 | C121: Concrete footings and pedestals for laboratory equipment | D121: square metre (m2) | E121: 4 | G121: 0
B122: C1.4.2.6 | C122: Roller blinds, opaque type | D122: square metre (m2) | E122: 15 | G122: 0
B123: C1.4.2.7 | C123: Venetian blinds | D123: square metre (m2) | E123: 5 | G123: 0
B124: C1.4.2.8 | C124: Notice boards | D124: square metre (m2) | E124: 5 | G124: 0
B125: C1.4.2.9 | C125: White boards | D125: square metre (m2) | E125: 5 | G125: 0
B126: C1.4.2.10 | C126: Galvanised wire mesh fencing for store rooms | D126: square metre (m2) | E126: 45 | G126: 0
B127: C1.4.2.11 | C127: Galvanised wire mesh store room gate with a padlock | D127: square metre (m2) | E127: 8 | G127: 0
B128: C1.4.3 | C128: Items measured by number | E128: 0 | J128: 1
B129: C1.4.3.1 | C129: Office swivel chair | D129: number (No.) | E129: 5 | G129: =E129*F129 -> 0
B130: C1.4.3.2 | C130: Office chair | D130: number (No.) | E130: 15 | G130: 0
B131: C1.4.3.3 | C131: Draughtsman's stool | D131: number (No.) | E131: 3 | G131: 0
B132: C1.4.3.4 | C132: Laboratory high chair | D132: number (No.) | E132: 8 | G132: 0 | J132: =IF(G132>0,1," ") -> 
B133: C1.4.3.5 | C133: Office desk with 3 drawers (at least one lockable drawer) | D133: number (No.) | E133: 3 | G133: 0
B134: C1.4.3.6 | C134: Typist desk (L-shaped) | D134: number (No.) | E134: 5 | G134: 0
B135: C1.4.3.7 | C135: Drawing table | D135: number (No.) | E135: 3 | G135: 0
B136: C1.4.3.8 | C136: Conference table | D136: number (No.) | E136: 1 | G136: 0
B137: C1.4.3.9 | C137: Bookcase | D137: number (No.) | E137: 2 | G137: 0
B138: C1.4.3.10 | C138: Filing cabinet | D138: number (No.) | E138: 2 | G138: 0
B139: C1.4.3.11 | C139: General purpose steel cabinet with shelves | D139: number (No.) | E139: 3 | G139: 0
B140: C1.4.3.12 | C140: Wall mounted pivot plan filing system | D140: number (No.) | E140: 2 | G140: 0
B141: C1.4.3.13 | C141: 220/250 volt power outlet plug point | D141: number (No.) | E141: 10 | G141: 0
B142: C1.4.3.14 | C142: 400/231 volt 3-phase power outlet plug point | D142: number (No.) | E142: 1 | G142: 0
B143: C1.4.3.15 | C143: Single 1500m, 58 watt fluorescent tube ceiling light | D143: number (No.) | G143: 0
B144: C1.4.3.16 | C144: Single 1500mm, 22 watt LED tube ceiling light | D144: number (No.) | E144: 12 | G144: 0
B145: C1.4.3.17 | C145: 11 watt compact fluorescent bulb ceiling light | D145: number (No.) | G145: 0
B146: C1.4.3.18 | C146: 7 watt LED bulb ceiling light | D146: number (No.) | E146: 8 | G146: 0
B147: C1.4.3.19 | C147: Wash-hand basin | D147: number (No.) | E147: 2 | G147: 0
B148: C1.4.3.20 | C148: Laboratory basin | D148: number (No.) | E148: 3 | G148: 0
B149: C1.4.3.21 | C149: Extractor fan | D149: number (No.) | E149: 2 | G149: 0
B150: C1.4.3.22 | C150: Fume cupboard | D150: number (No.) | E150: 1 | G150: 0
B151: C1.4.3.23 | C151: Fire extinguisher 9,0 kg, dry powder type | D151: number (No.) | E151: 5 | G151: 0
B152: C1.4.3.24 | C152: Air-conditioning unit | D152: number (No.) | E152: 3 | G152: 0
B153: C1.4.3.25 | C153: Heater | D153: number (No.) | G153: 0
B154: C1.4.3.26 | C154: Concrete specimen curing bath | D154: number (No.) | E154: 1 | G154: 0
B155: C1.4.3.27 | C155: Waste paper basket | D155: number (No.) | E155: 3 | G155: 0
B156: C1.4.3.28 | C156: UPS / Voltage stabiliser | D156: number (No.) | E156: 5 | G156: 0
B157: C1.4.3.29 | C157: A3 / A4 colour printer, copier, scanner | D157: number (No.) | E157: 1 | G157: 0
B158: C1.4.3.30 | C158: A4 colour printer, copier, scanner | D158: number (No.) | E158: 1 | G158: 0
B159: C1.4.3.31 | C159: Rain gauge | D159: number (No.) | E159: 2 | G159: 0
B160: C1.4.3.32 | C160: Minimum/maximum atmospheric temperature gauge | D160: number (No.) | E160: 4 | G160: 0
B161: C1.4.3.33 | C161: Digital thermometer | D161: number (No.) | E161: 2 | G161: 0
B162: C1.4.3.34 | C162: Mobile outdoor weather station | D162: number (No.) | E162: 1 | G162: 0
B163: C1.4.3.35 | C163: 3,0m aluminium straight edge complete with two measuring wedges | D163: number (No.) | E163: 2 | G163: 0
B164: C1.4.3.36 | C164: Measuring wheel | D164: number (No.) | E164: 4 | G164: 0
B165: C1.4.3.37 | C165: First aid kit | D165: number (No.) | E165: 1 | G165: 0
B166: C1.4.3.38 | C166: Standpipe complete with 30m of 19mm dia. heavy duty hose pipe | D166: number (No.) | E166: 1 | G166: 0
B167: PC1.4.3.39 | C167: Projector and screen (size stated) | D167: number (No.) | G167: 0 | H167: X
B168: C1.4.4 | C168: Prime cost items | J168: 1
B169: C1.4.4.1 | C169: Cell phones costs, including pro-rata rentals, for calls made in connection with contract administration | D169: prime cost (PC) sum | E169: 1 | F169: =3*750*12 -> R27,000.00 | G169: =F169*E169 -> R27,000.00 | J169: 1
B170: C1.4.4.2 | C170: Handling costs and profit in respect of item C1.4.4.1 | D170: percentage (%) | E170: =F169 -> 27 000 | G170: =E170*F170 -> 0
B171: C1.4.4.3 | C171: The provision of a direct independent telephone line for the Engineer, including the monthly rental charges and the cost of business calls | D171: prime cost (PC) sum
B172: C1.4.4.4 | C172: Handling costs and profit in respect of item C1.4.4.3 | D172: percentage (%) | G172: =E172*F172 -> 0
B173: C1.4.4.5 | C173: The provision of internet connectivity and WiFi data for Engineer’s site staff | D173: prime cost (PC) sum | E173: 1 | F173: R25,000.00 | G173: =E173*F173 -> R25,000.00 | J173: 1
B174: C1.4.4.6 | C174: Handling costs and profit in respect of item C1.4.4.5 | D174: percentage (%) | E174: 25 000 | G174: 0
B175: C1.4.4.7 | C175: The provision of paper and ink for a combination colour printer/copier/scanner | D175: prime cost (PC) sum | E175: 1 | F175: R48,500.00 | G175: R48,500.00 | J175: 1
B176: C1.4.4.8 | C176: Handling costs and profit in respect of item C1.4.4.7 | D176: percentage (%) | E176: 48 500 | G176: 0
B177: C1.4.4.9 | C177: The provision of a complete 220/250 volt single phase electrical power installation, including all poles, insulators, wiring, switchboards, mains connections, meters etc. | D177: prime cost (PC) sum | E177: 1 | F177: R37,500.00 | G177: R37,500.00 | J177: 1
B178: C1.4.4.10 | C178: Handling costs and profit in respect of item C1.4.4.9 | D178: percentage (%) | E178: 37 500 | G178: 0
B179: C1.4.4.11 | C179: The provision of a complete 440/231 volt three phase electrical power installation, including all poles, insulators, wiring, switchboards, mains connections, meters etc. | D179: prime cost (PC) sum | E179: 1 | F179: R42,500.00 | G179: R42,500.00 | J179: 1
B180: C1.4.4.12 | C180: Handling costs and profit in respect of item C1.4.4.11 | D180: percentage (%) | E180: 42 500 | G180: 0
B181: C1.4.4.13 | C181: Provision of a 440/231 volt three phase electricity generator if electricity from a power supply authority is not available on site | D181: prime cost (PC) sum | E181: 1 | F181: R157,500.00 | G181: R157,500.00 | J181: 1
B182: C1.4.4.14 | C182: Handling costs and profit in respect of item C1.4.4.13 | D182: percentage (%) | E182: 157 500 | G182: 0
B183: C1.4.4.15 | C183: The provision of all gas installations required at the site offices, laboratories and at the Engineer’s staff accommodation (if required), including gas storage cylinders, tubing, regulators, gas burners and shut-off cocks | D183: prime cost (PC) sum | E183: 1 | F183: R24,750.00 | G183: R24,750.00 | J183: 1
B184: C1.4.4.16 | C184: Handling costs and profit in respect of item C1.4.4.15 | D184: percentage (%) | E184: 24 750 | G184: 0
B185: C1.4.5 | C185: Services at site offices, laboratories and site accommodation | E185: 0 | J185: 1
B186: C1.4.5.1 | C186: Fixed costs | D186: lump sum | E186: 1 | G186: =E186*F186 -> 0
B187: C1.4.5.2 | C187: Running costs | D187: month | E187: 12 | G187: =E187*F187 -> 0
B188: C1.4.6 | C188: Office staff
B189: C1.4.6.1 | C189: Secretary / receptionist | D189: month | G189: =E189*F189 -> 0
B190: C1.4.6.2 | C190: Technical assistant | D190: month | G190: =E190*F190 -> 0
B191: C1.4.7 | C191: Site inspection transport | E191: 0 | J191: 1
B192: C1.4.7.1 | C192: Provision of a bus, mini-bus or combi van for site inspection purposes (16 Seater mini bus) | D192: per day | E192: 18 | G192: =E192*F192 -> 0 | H192: X
B193: C1.4.7.2 | C193: Travel on site | D193: kilometre (km) | E193: 900 | G193: =E193*F193 -> 0
B194: C1.4.8 | C194: Site security measures for the Engineer’s facilities | E194: 0 | J194: 1
B195: C1.4.8.1 | C195: Supply and installation of all required security measures at the Engineer’s site offices and laboratories | D195: lump sum | E195: 1 | G195: =E195*F195 -> 0
B196: C1.4.8.2 | C196: Provision of security guards / watchmen and an armed response service at the Engineer’s site offices and laboratories | D196: month | E196: 12 | G196: =E196*F196 -> 0 | J196: =IF(G196>0,1," ") -> 
B197: C1.4.8.3 | C197: Supply and installation of all required security measures at the Engineer’s site accommodation | D197: lump sum
B198: C1.4.8.4 | C198: Provision of security guards / watchmen and an armed response service at the Engineer’s site accommodation | D198: month | G198: =E198*F198 -> 0
B199: C1.4.8.5 | C199: Supply and installation of an alarm system at the Engineer’s rented accommodation (No. of houses stated …) | D199: lump sum | H199: X
B200: C1.4.8.6 | C200: Provision of an armed response service at the Engineer’s rented accommodation (No. of houses stated …) | D200: month | G200: =E200*F200 -> 0 | H200: X
H201: Add items from other Sections as specified in C1.1.3.7 and identified in Part C3(iii) where applicable
... 3622 more rows

Sheet Summary
A1: SUMMARY
A3: CONTRACT SANRAL N.002-090-2023/1R
A4: FOR THE PERIODIC MAINTENANCE ON NATIONAL ROUTE N2 SECTION 9 BETWEEN WITELSBOS I/S (KM 37.00) AND KAREEDOUW I/C (KM 55.30)
A6: GENERAL
A7: C1.2 | B7: GENERAL REQUIREMENTS AND PROVISIONS | C7: ='Conv. Construction BoQ'!G79 -> R1,040,000.00
A8: C1.3 | B8: CONTRACTOR’S SITE ESTABLISHMENT AND GENERAL OBLIGATIONS | C8: ='Conv. Construction BoQ'!G98 -> R495,000.00
A9: C1.4 | B9: FACILITIES FOR THE ENGINEER | C9: ='Conv. Construction BoQ'!G204 -> R362,750.00
A10: C1.5 | B10: ACCOMMODATION OF TRAFFIC | C10: ='Conv. Construction BoQ'!G274 -> R120,000.00
A11: C1.6 | B11: CLEARING AND GRUBBING | C11: ='Conv. Construction BoQ'!G313 -> R0.00
A12: C1.7 | B12: LOADING AND HAULING | C12: ='Conv. Construction BoQ'!G331 -> R0.00 | D12: =SUM(C7:C12) -> R2,017,750.00
A14: SERVICES
A15: C2.1 | B15: GENERAL REQUIREMENTS AND TRENCHING FOR SERVICES | C15: ='Conv. Construction BoQ'!G475 -> R77,500.00
A16: C2.2 | B16: DRY SERVICES | C16: ='Conv. Construction BoQ'!G547 -> R0.00
A17: C2.3 | B17: WET SERVICES | C17: ='Conv. Construction BoQ'!G771 -> R0.00
A18: C2.4 | B18: ENERGY AND OTHER SERVICES | C18: ='Conv. Construction BoQ'!G795 -> R0.00 | D18: =SUM(C15:C18) -> R77,500.00
A20: DRAINAGE
A21: C3.1 | B21: DRAINS | C21: ='Conv. Construction BoQ'!G883 -> R300,000.00
A22: C3.2 | B22: CULVERTS | C22: ='Conv. Construction BoQ'!G985 -> R0.00
A23: C3.3 | B23: CONCRETE KERBING AND CHANNELING, ASPHALT BERMS, CHUTES, DOWNPIPES, AS WELL AS CONCRETE, STONE PITCHED AND GABION LININGS FOR OPEN DRAINS | C23: ='Conv. Construction BoQ'!G1048 -> R0.00 | D23: =SUM(C21:C23) -> R300,000.00
A25: EARTHWORKS AND PAVEMENT LAYERS MATERIALS
A26: C4.1 | B26: BORROW MATERIALS | C26: ='Conv. Construction BoQ'!G1127 -> R0.00
A27: C4.2 | B27: CUT MATERIALS | C27: ='Conv. Construction BoQ'!G1195 -> R0.00
A28: C4.3 | B28: EXISTING ROAD MATERIALS | C28: ='Conv. Construction BoQ'!G1311 -> R75,000.00
A29: C4.4 | B29: COMMERCIAL MATERIALS | C29: ='Conv. Construction BoQ'!G1389 -> R0.00
A30: C4.5 | B30: ALTERNATIVE MATERIALS | C30: =#REF! -> R0.00 | D30: =SUM(C26:C30) -> R75,000.00
A32: EARTHWORKS AND PAVEMENT LAYERS CONSTRUCTION
A33: C5.1 | B33: ROADBED | C33: ='Conv. Construction BoQ'!G1499 -> R0.00
A34: C5.2 | B34: FILL | C34: ='Conv. Construction BoQ'!G1548 -> R0.00
A35: C5.3 | B35: ROAD PAVEMENT LAYERS | C35: ='Conv. Construction BoQ'!G1634 -> R0.00
A36: C5.4 | B36: STABILISATION | C36: ='Conv. Construction BoQ'!G1681 -> R0.00
A37: C5.5 | B37: RECONSTRUCTION OF PAVEMENT LAYERS | C37: ='Conv. Construction BoQ'!G1879 -> R0.00 | D37: =SUM(C33:C37) -> R0.00
A39: CONCRETE LAYERS
A40: C6.1 | B40: PAVER LAID CONCRETE LAYERS | C40: ='Conv. Construction BoQ'!G1929 -> R0.00
A41: C6.2 | B41: SEGMENTAL BLOCK PAVING LAYERS | C41: ='Conv. Construction BoQ'!G1943 -> R0.00 | D41: =SUM(C40:C41) -> R0.00
A43: MAINTENANCE AND REPAIR CONCRETE LAYERS
A44: C7.1 | B44: REPLACEMENT OF EXISTING JOINT SEALANT | C44: ='Conv. Construction BoQ'!G1957 -> R0.00
A45: C7.2 | B45: REPAIR TO CONCRETE PANELS AND CONCRETE ADJACENT TO UNCONTROLLED CRACKS AND EXISTING JOINTS | C45: ='Conv. Construction BoQ'!G1994 -> R0.00
A46: C7.3 | B46: REMOVAL AND REINSTATEMENT OF EXISTING CONCRETE LAYERS | C46: ='Conv. Construction BoQ'!G2040 -> R0.00
A47: C7.4 | B47: REINSTATEMENT OF SLAB SUPPORT BY GROUT INJECTION | C47: ='Conv. Construction BoQ'!G2047 -> R0.00
A48: C7.5 | B48: REINSTATEMENT OF RIDING QUALITY | C48: ='Conv. Construction BoQ'!G2054 -> R0.00
A49: C7.6 | B49: REINSTATEMENT OF SURFACE TEXTURE | C49: ='Conv. Construction BoQ'!G2061 -> R0.00 | D49: =SUM(C44:C49) -> R0.00
A51: PRETREATMENT AND REPAIR EXISTING LAYERS
A52: C8.1 | B52: PRIME COAT | C52: ='Conv. Construction BoQ'!G2077 -> R0.00
A53: C8.2 | B53: COVER SPRAYS, FOG SPRAYS AND REJUVENATION SPRAYS | C53: ='Conv. Construction BoQ'!G2097 -> R0.00
A54: C8.3 | B54: TEXTURE TREATMENT | C54: ='Conv. Construction BoQ'!G2107 -> R0.00
A55: C8.4 | B55: RUT AND/OR DEPRESSION CORRECTION | C55: ='Conv. Construction BoQ'!G2121 -> R0.00
A56: C8.5 | B56: STANDARD CRACK SEALING | C56: ='Conv. Construction BoQ'!G2137 -> R0.00
A57: C8.6 | B57: GEOSYNTHETIC CRACK SEALING | C57: ='Conv. Construction BoQ'!G2148 -> R0.00
A58: C8.7 | B58: PLANING | C58: ='Conv. Construction BoQ'!G2160 -> R0.00
A59: C8.8 | B59: PATCHING AND EDGE BREAK REPAIR | C59: ='Conv. Construction BoQ'!G2234 -> R0.00
A60: C8.9 | B60: REPAIR OF SURFACE DEFECTS | C60: ='Conv. Construction BoQ'!G2252 -> R0.00 | D60: =SUM(C52:C60) -> R0.00
A62: ASPHALT LAYERS
A63: C9.1 | B63: ASPHALT LAYERS | C63: ='Conv. Construction BoQ'!G2356 -> R0.00 | D63: =SUM(C63) -> R0.00
A65: SURFACE TREATMENTS
A66: C10.1 | B66: GENERAL REQUIREMENTS FOR SURFACE TREATMENTS | C66: ='Conv. Construction BoQ'!G2482 -> R0.00 | D66: =SUM(C66) -> R0.00
A68: ANCILLIARY ROAD WORKS
A69: C11.1 | B69: PITCHING, STONEWORK, CAST IN SITU CONCRETE FOR PROTECTION AGAINST EROSION | C69: ='Conv. Construction BoQ'!G2517 -> R0.00
A70: C11.2 | B70: NON-STRUCTURAL GABIONS | C70: ='Conv. Construction BoQ'!G2538 -> R0.00
A71: C11.3 | B71: GUIDE BLOCKS AND KILOMETRE MARKERS | C71: ='Conv. Construction BoQ'!G2547 -> R0.00
A72: C11.4 | B72: ROAD RESTRAINT SYSTEMS | C72: ='Conv. Construction BoQ'!G2624 -> R0.00
A73: C11.5 | B73: FENCING | C73: ='Conv. Construction BoQ'!G2689 -> R0.00
A74: C11.6 | B74: ROAD SIGNS | C74: ='Conv. Construction BoQ'!G2793 -> R0.00
A75: C11.7 | B75: ROAD MARKINGS AND ROAD STUDS | C75: ='Conv. Construction BoQ'!G2889 -> R0.00
A76: C11.8 | B76: LANDSCAPING AND PLANTING PLANTS | C76: ='Conv. Construction BoQ'!G2941 -> R0.00
A77: C11.9 | B77: FINISHING THE ROAD AND ROAD RESERVE AND TREATING OLD ROADS | C77: ='Conv. Construction BoQ'!G2953 -> R0.00 | D77: =SUM(C69:C77) -> R0.00
A79: GEOTECHNICAL
A80: C12.1 | B80: PILING | C80: ='Conv. Construction BoQ'!G3028 -> R0.00
A81: C12.2 | B81: GROUND ANCHORS | C81: ='Conv. Construction BoQ'!G3059 -> R0.00
A82: C12.3 | B82: GROUND IMPROVEMENT | C82: ='Conv. Construction BoQ'!G3138 -> R0.00
A83: C12.4 | B83: LATERAL SUPPORT | C83: ='Conv. Construction BoQ'!G3176 -> R0.00
A84: C12.5 | B84: SHOTCRETE | C84: ='Conv. Construction BoQ'!G3200 -> R0.00
A85: C12.6 | B85: MECHANICALLY STABILISED EARTH WALLS AND GABIONS | C85: ='Conv. Construction BoQ'!G3244 -> R0.00
A86: C12.7 | B86: TRENCHLESS METHODS | C86: ='Conv. Construction BoQ'!G3257 -> R0.00
A87: C12.8 | B87: GROUND DRAINAGE | C87: ='Conv. Construction BoQ'!G3282 -> R0.00
A88: C12.9 | B88: SLOPE PROTECTION MEASURES | C88: ='Conv. Construction BoQ'!G3300 -> R0.00
A89: C12.10 | B89: HARD EXCAVATION BY BLASTING | C89: ='Conv. Construction BoQ'!G3314 -> R0.00
A90: C12.11 | B90: GEOSYNTHETICS | C90: ='Conv. Construction BoQ'!G3321 -> R0.00
A91: C12.12 | B91: CONSTRUCTION DEWATERING | C91: ='Conv. Construction BoQ'!G3337 -> R0.00 | D91: =SUM(C80:C91) -> R0.00
A93: STRUCTURES
A94: C13.1 | B94: FOUNDATIONS | C94: ='Conv. Construction BoQ'!G3425 -> R0.00
A95: C13.2 | B95: FALSEWORK, FORMWORK AND CONCRETE FINISH | C95: ='Conv. Construction BoQ'!G3443 -> R0.00
A96: C13.3 | B96: STEEL REINFORCEMENT | C96: ='Conv. Construction BoQ'!G3460 -> R0.00
A97: C13.4 | B97: CONCRETE | C97: ='Conv. Construction BoQ'!G3516 -> R0.00
A98: C13.5 | B98: PRESTRESSING | C98: ='Conv. Construction BoQ'!G3532 -> R0.00
A99: C13.6 | B99: BEARINGS | C99: ='Conv. Construction BoQ'!G3550 -> R0.00
A100: C13.7 | B100: JOINTS | C100: ='Conv. Construction BoQ'!G3594 -> R0.00
A101: C13.8 | B101: ANCILLARY STRUCTURAL ELEMENTS | C101: ='Conv. Construction BoQ'!G3634 -> R0.00
A102: C13.9 | B102: STRUCTURAL STEELWORK FOR MINOR STRUCTURES | C102: ='Conv. Construction BoQ'!G3656 -> R0.00
A103: C13.10 | B103: PAINTING OF MINOR STRUCTURES | C103: ='Conv. Construction BoQ'!G3672 -> R0.00
A104: C13.11 | B104: STRUCTURAL STEELWORK FOR MAJOR STRUCTURES | C104: ='Conv. Construction BoQ'!G3680 -> R0.00
A105: C13.12 | B105: STRUCTURAL STEEL PROTECTIVE TREATMENT OF MAJOR STRUCTURES | C105: ='Conv. Construction BoQ'!G3689 -> R0.00
A106: C13.13 | B106: INCREMENTAL LAUNCHING OF BRIDGE DECKS | C106: ='Conv. Construction BoQ'!G3723 -> R0.00
A107: C13.14 | B107: SPECIALIST STRUCTURES | C107: ='Conv. Construction BoQ'!G3730 -> R0.00 | D107: =SUM(C94:C107) -> R0.00
A109: REPAIR AND REHABILITATION STRUCTURES
A110: C14.1 | B110: ACCESS FOR BRIDGE REHABILITATION | C110: ='Conv. Construction BoQ'!G3757 -> R0.00
A111: C14.2 | B111: CORROSION SURVEY METHODS AND TESTING OF NEAR SURFACE CONCRETE PROPERTIES | C111: ='Conv. Construction BoQ'!G3783 -> R0.00
A112: C14.3 | B112: DEMOLITION AND REMOVAL OF STRUCTURAL CONCRETE AND STEELWORK | C112: ='Conv. Construction BoQ'!G3803 -> R0.00
A113: C14.4 | B113: SURFACE AND STRUCTURAL REPAIR OF CONCRETE MEMBERS | C113: ='Conv. Construction BoQ'!G3828 -> R0.00
A114: C14.5 | B114: ANCHORING OF REINFORCEMENT, GROUTING AND CRACK INJECTION | C114: ='Conv. Construction BoQ'!G3850 -> R0.00
A115: C14.6 | B115: SPRAYED CONCRETE FOR STRUCTURES | C115: ='Conv. Construction BoQ'!G3863 -> R0.00
A116: C14.7 | B116: PROTECTIVE COATINGS AND TREATMENTS FOR CONCRETE | C116: ='Conv. Construction BoQ'!G3873 -> R0.00
A117: C14.8 | B117: EXTERNAL BONDING OF STEEL AND CARBON FIBRE | C117: ='Conv. Construction BoQ'!G3894 -> R0.00
A118: C14.9 | B118: REPAIR AND REPLACEMENT OF ANCILLARY STRUCTURAL ELEMENTS | C118: ='Conv. Construction BoQ'!G3934 -> R0.00
A119: C14.10 | B119: JACKING OF BRIDGE STRUCTURES | C119: ='Conv. Construction BoQ'!G3947 -> R0.00
A120: C14.11 | B120: REPAIR OF STEEL ELEMENTS | C120: ='Conv. Construction BoQ'!G3955 -> R0.00 | D120: =SUM(C110:C120) -> R0.00
A122: QUALITY ASSURANCE
A123: C20.1 | B123: TESTING MATERIALS AND JUDGEMENT OF WORKMANSHIP | C123: ='Conv. Construction BoQ'!G3989 -> R250,000.00 | D123: =SUM(C123) -> R250,000.00
A125: SECTION D: STAKEHOLDER AND COMMUNITY LIAISON, AND TARGET LABOUR AND TARGETED ENTERPRISES UTILISATION AND DEVELOPMENT
A126: D1010 | B126: TRAINING, COACHING, GUIDANCE, MENTORING AND ASSISTANCE | C126: ='Conv. Construction BoQ'!G4042 -> R15,193,600.00 | D126: =SUM(C126) -> R15,193,600.00
B129: SUBTOTAL | C129: =SUM(D12+D18+D23+D30+D37+D41+D49+D60+D63+D66+D77+D91+D107+D120+D123+D126) -> R17,913,850.00

Sheet Form C2.3 Summary of Pricing Sc
A1: C2.3 SUMMARY OF PRICING SCHEDULE
A3: =Summary!A3 -> CONTRACT SANRAL N.002-090-2023/1R
A4: =Summary!A4 -> FOR THE PERIODIC MAINTENANCE ON NATIONAL ROUTE N2 SECTION 9 BETWEEN WITELSBOS I/S (KM 37.00) AND KAREEDOUW I/C (KM 55.30)
A7: SCHEDULE A: | B7: ROADWORKS | C7: =Summary!D12+Summary!D18+Summary!D23+Summary!D30+Summary!D37+Summary!D41+Summary!D49+Summary!D60+Summary!D63+Summary!D66+Summary!D77+Summary!D91+Summary!D123 -> R2,720,250.00
A9: SCHEDULE B: | B9: BRIDGES | C9: =Summary!D107+Summary!D120 -> R0.00
A11: Note to compiler: Insert additional schedules for other work such as Schedule C for electrical, lighting, Schedule E for buildings etc.
A12: SCHEDULE C: | B12: ELECTRICAL AND LIGHTING | C12: R0.00
A14: SCHEDULE D: | B14: STAKEHOLDER AND COMMUNITY LIAISON, AND TARGET LABOUR AND TARGETED ENTERPRISES UTILISATION AND DEVELOPMENT | C14: ='Conv. Construction BoQ'!G4042 -> R15,193,600.00
A17: SUBTOTAL A | C17: =C7+C9+C12+C14 -> R17,913,850.00
A21: VALUE ADDED TAX:
A22: 15% of Subtotal B | C22: =C17*0.15 -> R2,687,077.50
A24: TOTAL CARRIED TO C.1.1.1 : FORM OF OFFER | C24: =C17+C22 -> R20,600,927.50
A30: SIGNED BY TENDERER: …...................................................................................................................

Sheet D10.06 (hidden)
